Cogmind - Beta 17 @@@ ROGUE MODE // 2026.07.16 @ 00:00:23 Player: (Blank) Result: Destroyed by Y-45 Defender with Beam Rifle Performance ------------- Evolutions (2) 1000 Regions Visited (3) 600 Robots Destroyed (13) 65 Value Destroyed (309) 309 Prototype IDs (2) 40 Alien Tech Used (0) 0 Bonus (0) 0 TOTAL SCORE: 2014 Bonus ------- None Cogmind --------- Core Integrity 0/550 Matter 245/300 Energy 307/325 System Corruption 5% Temperature Danger (450) Movement Hovering (52) Location -8/Materials Parts ------- > --- POWER (3) -------- Improved Ion Engine Light Nuclear Core > --- PROPULSION (3) --- Airjet Airjet Airjet > --- UTILITY (3) ------ Targeting Computer Advanced Targeting Computer > --- WEAPON (2) ------- Heavy Particle Cannon > --- INVENTORY (5) ---- Airjet Reaction Control System Peak State ------------ > --- POWER ------------ Improved Ion Engine Light Nuclear Core > --- PROPULSION ------- Airjet Airjet Airjet > --- UTILITY ---------- Improved Heat Sink Targeting Computer Advanced Targeting Computer > --- WEAPON ----------- Heavy Particle Cannon > --- INVENTORY -------- Reaction Control System [Rating: 24] Favorites ----------- Power Ion Engine Engine Ion Engine Power Core Light Nuclear Core Propulsion Wheel Wheel Wheel Hover Unit Airjet Utility Small Storage Unit Device Improved Terrain Scanner Storage Small Storage Unit Processor Targeting Computer Protection Heavy Armor Plating Weapon Medium Laser Energy Gun Medium Laser Energy Cannon Heavy Particle Cannon Ballistic Gun Heavy Assault Rifle Special Weapon Mining Laser Build | -11 -10 -10 -8 ------- Run | Yrd Mat Sub Mat Slots Evolved 4 | . . . 4 Power 2 | . . . 2 Propulsion 1 | . . . 1 Utility 1 | . . . 1 Weapon . | . . . . Parts Attached 24 | 7 . 1 16 Power 4 | 1 . . 3 Engine 3 | 1 . . 2 Core 1 | . . . 1 Reactor . | . . . . Propulsion 7 | 2 . 1 4 Treads . | . . . . Leg . | . . . . Wheel 4 | 2 . 1 1 Hover 3 | . . . 3 Flight . | . . . . Utility 7 | 2 . . 5 Device 2 | 1 . . 1 Storage 1 | 1 . . . Processor 2 | . . . 2 Hackware . | . . . . Protection 2 | . . . 2 Artifact . | . . . . Weapon 6 | 2 . . 4 Energy Gun 2 | 2 . . . Energy Cannon 1 | . . . 1 Ballistic Gun 2 | . . . 2 Ballistic Cannon . | . . . . Launcher . | . . . . Special Weapon 1 | . . . 1 Impact Weapon . | . . . . Slashing Weapon . | . . . . Piercing Weapon . | . . . . Special Melee Weapon . | . . . . Unidentified Prototypes . | . . . . Corrupted Parts 1 | . . . 1 System Corruption 5 | . . . 5 Parts Lost 12 | . . . 12 Power 2 | . . . 2 Propulsion 3 | . . . 3 Utility 2 | . . . 2 Weapon 5 | . . . 5 Highest Loss Streak 11 | . . . 11 To Critical Strikes . | . . . . Average Backups 4 | 2 5 6 3 Power . | 1 1 1 . Propulsion 1 | . 2 2 . Utility . | . . 1 1 Weapon 1 | . 2 2 1 Tool/Special . | . . . . Unused Backups 1 | . . . 1 Power . | . . . . Propulsion . | . . . . Utility 1 | . . . 1 Weapon . | . . . . Tool/Special . | . . . . Average Slot Usage (%) 83 | . 100 100 67 Engine 12 | . 14 14 11 Wheel 21 | . 28 28 15 Hover 2 | . . . 4 Device 8 | . 14 14 2 Storage 7 | . 14 14 . Processor 6 | . . . 12 Protection 2 | . . . 5 Energy Gun 18 | . 28 28 10 Peak Build Rating 24 | 9 9 10 24 Average Rating 10 | 4 9 9 13 On Entrance 6 | . 9 9 6 Avg Prop Armor Cover (%) . | . . . . Naked Turns . | . . . . Heaviest Build 30 | 15 15 15 30 Greatest Support 30 | 26 26 26 30 Greatest Overweight (x) 2 | . . . 2 Average Overweight (x) . | . . . . Largest Inventory Capacity 8 | 8 8 8 8 Average Capacity 6 | 6 8 8 5 Most Carried 8 | 5 6 8 5 Average Carried 4 | 2 5 7 3 Final Capacity 8 | 8 8 8 5 Final Carried 7 | 5 6 7 2 Class Distribution -------------------- 100% | Mutant Dominant Class ---------------- Mutant | -10/Materials Mutant | -10/Subcaves Mutant | -8/Materials Resources | -11 -10 -10 -8 ----------- Run | Yrd Mat Sub Mat Matter Collected 335 | 270 . . 65 Remotely . | . . . . Salvage Created 432 | 137 49 21 225 Parts 28 | 11 3 3 11 Haulers Intercepted . | . . . . Recyclers Shooed 2 | . . . 2 Parts Field Recycled . | . . . . Retrieved Matter . | . . . . Parts Self-Destructed 4 | . . 4 . Prevented . | . . . . Parts Restored . | . . . . Kills | -11 -10 -10 -8 ------- Run | Yrd Mat Sub Mat Combat Hostiles Destroyed 7 | . . 2 5 Guns 2 | . . 1 1 Cannons 3 | . . . 3 AOE 2 | . . 1 1 Classes Destroyed 7 | 2 2 1 2 Builder 1 | . 1 . . Tunneler 3 | 3 . . . Recycler 1 | 1 . . . Watcher 1 | . 1 . . Swarmer 2 | . . 2 . Grunt 3 | . . . 3 Sentry 2 | . . . 2 Best Kill Streak 4 | 4 2 2 2 Combat Bots Only 2 | . . 2 2 Max Kills in Single Turn 1 | 1 1 1 1 Gunslinging . | . . . . Exploded 1 | . . 1 1 Melee . | . . . . Uniques/NPCs Destroyed . | . . . . Combat | -11 -10 -10 -8 -------- Run | Yrd Mat Sub Mat Hostile Shots Fired 147 | . . 8 139 Missed 32 | . . 1 31 Hits 115 | . . 7 108 Projectile 115 | . . 7 108 Critical Strikes 4 | . . 1 3 Damage Taken 1773 | . . 92 1681 Core 583 | . . 31 552 Absorbed by Shields . | . . . . Core Remaining (%) 93 | 100 . 87 . Volleys Fired 66 | 9 13 8 36 Largest 1 | 1 1 1 1 Hottest 100 | 40 40 40 100 Shots Fired 66 | 9 13 8 36 Gun 51 | 9 13 8 21 Cannon 14 | . . . 14 Launcher . | . . . . Special 1 | . . . 1 Kinetic 6 | . . . 6 Thermal 17 | . . . 17 Explosive . | . . . . Electromagnetic 43 | 9 13 8 13 Robot Hit Streak 11 | 4 3 3 11 Robot Miss Streak 4 | 2 3 4 3 Penetration Max . | . . . . Secondary Targets . | . . . . Shots Hit Robots 41 | 6 4 2 29 Core Hits 24 | 5 2 2 15 Critical Kills . | . . . . Critical Parts Destroyed . | . . . . Critical Strikes 1 | . . . 1 Corrupt 1 | . . . 1 Melee Attacks . | . . . . Impact . | . . . . Slashing . | . . . . Piercing . | . . . . Sneak Attacks . | . . . . Combat Hostiles . | . . . . Follow-up Attacks . | . . . . Damage Inflicted 901 | 77 124 52 648 Guns 359 | 77 91 21 170 Cannons 325 | . . . 325 Explosions 193 | . 33 31 129 Melee . | . . . . Ramming . | . . . . Kinetic 39 | . . . 39 Thermal 567 | . 33 31 503 Explosive . | . . . . Electromagnetic 295 | 77 91 21 106 Impact . | . . . . Slashing . | . . . . Piercing . | . . . . Highest Corruption 5 | . . . 5 Average Corruption 5 | . . . 5 Corruption Purged . | . . . . Corruption Blocked . | . . . . Effects 3 | . . . 3 Message Errors 1 | . . . 1 Data Loss (minor) 1 | . . . 1 Data Loss (major) 1 | . . . 1 Overload Shots . | . . . . Overflow Damage 12 | . 2 . 10 Projectiles 10 | . . . 10 Explosions 2 | . 2 . . Melee . | . . . . Knockbacks . | . . . . Impact . | . . . . Kinetic . | . . . . Secondary . | . . . . Self-Inflicted Damage . | . . . . Shots . | . . . . Rammed . | . . . . Targets Rammed . | . . . . Kicked . | . . . . Crushed . | . . . . Highest Temperature 432 | 20 . . 432 Average Temperature 176 | 20 . . 180 Received Heat Transfer 765 | . . . 765 Effects 2 | . . . 2 Shutdowns 1 | . . . 1 Energy Bleed 1 | . . . 1 Siege Activations . | . . . . Martial Activations . | . . . . Shielding Activations . | . . . . Robots Disrupted . | . . . . Combat Hostiles . | . . . . Robots Corrupted . | . . . . Combat Hostiles . | . . . . Parts Fried 1 | 1 . . . Impact Corruptions . | . . . . Robots Melted . | . . . . Combat Hostiles . | . . . . Parts Melted 1 | . . . 1 Heat Transferred 805 | . 50 50 705 Parts Sabotaged . | . . . . Parts Stolen . | . . . . Parts Stripped . | . . . . Power Chain Reactions 3 | . 1 1 1 Alert | -11 -10 -10 -8 ------- Run | Yrd Mat Sub Mat Maximum Alert Level . | . . . . Low Security (%) 100 | 100 100 . 100 Level 1 . | . . . . Level 2 . | . . . . Level 3 . | . . . . Level 4 . | . . . . Level 5 . | . . . . High Security . | . . . . Max Security . | . . . . Peak Influence 80 | 10 17 . 80 Initial 15 | . 3 . 15 Average 10 | 2 3 . 17 Influence Increases 329 | 20 29 50 230 Destroy 0b10 Robot/C 140 | . . 40 100 Destroy 0b10 Robot/NC 30 | 20 10 . . Destroy Leader 42 | . 2 10 30 Successful Hack 4 | . . . 4 Disable Machine 15 | . 15 . . Destroy Structure 8 | . 2 . 6 Lose Combat Pursuer 90 | . . . 90 Influence Decreases 268 | 15 34 20 199 Entered New Map 17 | . 2 . 15 Time Decay 151 | 15 32 20 84 Lost Part 100 | . . . 100 Squads Dispatched 3 | . . . 3 Investigation 1 | . . . 1 Extermination . | . . . . Reinforcement 2 | . . . 2 Assault . | . . . . Garrison . | . . . . Intercept . | . . . . Searches Triggered . | . . . . Construction Impeded 1 | . . . 1 Haulers Reinforced . | . . . . Active Scanning Responses . | . . . . Cargo Convoy Interrupts . | . . . . Stealth | -11 -10 -10 -8 --------- Run | Yrd Mat Sub Mat Distress Signals . | . . . . Communications Jammed . | . . . . Distress Signals . | . . . . Times Spotted 24 | . 3 3 18 Peak Tracking Total 7 | . 3 3 7 Tactical Retreats 3 | . . . 3 Traps | -11 -10 -10 -8 ------- Run | Yrd Mat Sub Mat Traps Triggered 1 | . . . 1 Indirectly . | . . . . Trap Hack Attempts . | . . . . Triggered . | . . . . Disarmed . | . . . . Reprogrammed . | . . . . Reused . | . . . . Traps Extracted . | . . . . Installed . | . . . . Triggered . | . . . . Machines | -11 -10 -10 -8 ---------- Run | Yrd Mat Sub Mat Machines Disabled 1 | . 1 . . Max in Single Turn 1 | . 1 . . Machines Repaired . | . . . . Machines Dismantled . | . . . . Machines Sabotaged . | . . . . Overloaded Fab Kills . | . . . . Hacking | -11 -10 -10 -8 --------- Run | Yrd Mat Sub Mat Machines Accessed 2 | . 1 . 1 Terminals 2 | . 1 . 1 Fabricators . | . . . . Repair Stations . | . . . . Recycling Units . | . . . . Scanalyzers . | . . . . Garrison Access . | . . . . Total Hacks 4 | . 3 . 1 Successful 3 | . 2 . 1 Failed 1 | . 1 . . Catastrophic . | . . . . Database Lockouts . | . . . . Manual . | . . . . Terminals 4 | . 3 . 1 Fabricators . | . . . . Repair Stations . | . . . . Recycling Units . | . . . . Scanalyzers . | . . . . Garrison Access . | . . . . Terminal Hacks 3 | . 2 . 1 Prototype ID Bank 1 | . 1 . . Emergency Access Points 1 | . . . 1 Alert Level 1 | . 1 . . Fabricator Hacks . | . . . . Repair Station Hacks . | . . . . Recycling Unit Hacks . | . . . . Scanalyzer . | . . . . Garrison Access Hacks . | . . . . Unauthorized Hacks . | . . . . Terminals . | . . . . Fabricators . | . . . . Repair Stations . | . . . . Recycling Units . | . . . . Scanalyzers . | . . . . Garrison Access . | . . . . Data Cores Recovered . | . . . . Used . | . . . . Hacking Detections 1 | . 1 . . Full Trace Events . | . . . . Feedback Events . | . . . . Feedback Blocked . | . . . . Robot Schematics Acquired . | . . . . Robots Built . | . . . . Authchips . | . . . . Time . | . . . . Total Robot Build Rating . | . . . . Part Schematics Acquired . | . . . . Parts Built . | . . . . Authchips . | . . . . Time . | . . . . Total Part Build Rating . | . . . . Part Studies Acquired . | . . . . Parts Repaired . | . . . . Time . | . . . . Parts Recycled . | . . . . Recycled Matter . | . . . . Retrieved Matter . | . . . . Retrieved Components . | . . . . Parts Scanalyzed . | . . . . Part Schematics Acquired . | . . . . Parts Damaged . | . . . . Bothacking | -11 -10 -10 -8 ------------ Run | Yrd Mat Sub Mat Used RIF Installer . | . . . . Robots Hacked . | . . . . Non-combat . | . . . . Combat . | . . . . Robot Hacks Applied . | . . . . Relay Couplers Released . | . . . . Fabnet Peak Effective % . | . . . . Robots Rewired . | . . . . Allies Hacked . | . . . . Hacks Repelled . | . . . . Allies | -11 -10 -10 -8 -------- Run | Yrd Mat Sub Mat Total Allies . | . . . . Largest Group . | . . . . Highest-Rated Group . | . . . . Highest-Rated Ally . | . . . . Total Orders . | . . . . Ally Attacks . | . . . . Total Damage . | . . . . Kills . | . . . . Allies Corrupted . | . . . . Allies Melted . | . . . . Intel | -11 -10 -10 -8 ------- Run | Yrd Mat Sub Mat Active Infowar (turns) 233 | 7 162 64 . Terrain 233 | 7 162 64 . Robot Analysis Total . | . . . . Derelict Logs Recovered . | . . . . Drone Launches . | . . . . Drone Recoveries . | . . . . Exploration | -11 -10 -10 -8 ------------- Run | Yrd Mat Sub Mat Turns Passed 539 | 76 162 66 235 Spaces Moved 430 | 49 150 53 178 Core 66 | 17 . . 49 Treads . | . . . . Legs . | . . . . Wheels 352 | 32 150 53 117 Hover 12 | . . . 12 Flight . | . . . . Fastest Speed 50 | 50 90 80 50 Average Speed 82 | 76 90 89 76 Slowest Speed 180 | 90 90 90 180 Overloaded Moves . | . . . . Propulsion Burnouts . | . . . . Robots Hopped . | . . . . Potential Cave-ins . | . . . . Cave-ins Triggered . | . . . . Exploration Rate (%) 15 | 3 32 7 20 Regions Visited 3 Branch Regions 1 Pre-discovered Areas . | . . . . Known Exits Taken . | . . . . Unknown Exits Taken 3 | 1 1 1 . Scrap Searched . | . . . . Spaces Dug . | . . . . Terrain Destroyed 8 | . 2 . 6 Melee . | . . . . Projectile 1 | . . . 1 AOE 7 | . 2 . 5 Terrain Rammed . | . . . . Walls Destroyed . | . . . . Machines Disabled . | . . . . Actions | -11 -10 -10 -8 --------- Run | Yrd Mat Sub Mat Total 547 | 78 163 64 242 Wait 2 | 2 . . . Move 427 | 48 149 52 178 Hop . | . . . . Pick Up 24 | 12 1 1 10 Fast Attach 2 | . . . 2 Attach 22 | 7 . 1 14 Detach . | . . . . Swap . | . . . . Drop 4 | . . 2 2 Fire 66 | 9 13 8 36 Melee . | . . . . Ram . | . . . . Kick . | . . . . Crush . | . . . . Escape Stasis . | . . . . Rewire . | . . . . Trap . | . . . . Miscellaneous . | . . . . Route ------- -11/Scrapyard -10/Materials (discovered 2 exits: [*Mat] / [*Sub]) -10/Subcaves -8/Materials History --------- Turn | Location | Event 11 | -11/Scrapyard | Discovered new exit (range 15) 77 | -11/Scrapyard | Entered Materials 194 | -10/Materials | Discovered new exit (range 16) 235 | -10/Materials | Discovered new exit (range 4) 239 | -10/Materials | Entered Subcaves 240 | -10/Subcaves | Approached by a straggling Scientist 293 | -10/Subcaves | Discovered new exit (range 14) 300 | -10/Subcaves | Build established: Mutant 305 | -10/Subcaves | Entered Materials 305 | -8/Materials | Evolved 4 slots: Power x2, Propulsion x1, Utility x1 450 | -8/Materials | Core integrity fell below 50% 476 | -8/Materials | Core integrity fell below 20% 507 | -8/Materials | Lost 11 parts (2p3n1u5w) 540 | -8/Materials | Destroyed by Y-45 Defender with Beam Rifle Last Messages --------------- Hvy. Assault Rifle destroyed. T-07 Excavator is excavating. U-05 Engineer lays Concrete. T-07 Excavator is excavating. Acquired Hvy. Particle Cannon. Acquired Lgt. Nuclear Core. System corrupted: Component data lost. Acquired Airjet. [Achievement: Hydra] Acquired Airjet. Lgt. Armor Plating melted. Y-45 Defender destroyed. System corrupted: Substantial component data lost. Imp. Heat Sink destroyed. Acquired Airjet. R-06 Scavenger collects Beam Rifle. R-06 Scavenger collects Heat Sink. Destroyed Aluminum Leg. R-06 Scavenger collects Imp. Ion Engine. Y-45 Defender destroyed. Map ----- +----------------------------------------------------+ | ????????????????????????????# # | | ????????????????????????????# # ! "" | | ???????????????############## """ + "T | | ?????????????####### + """ # | | ?????????????# =# """"" # """ # != !!*! | | ##############! %# """"" # # !! !! | | % %[= =+ """"" /######## !! !! | | # ########=%! # """"" ##?????# | | # ## % !##=! # """"" #?????# | | # ## #### ### """"" ##?????####+#####T#### | | # ## #??# #?# """"" #???????? ??###??# | | # ## !#??# #?# #????""?#[ """ #?????# | | # ## #??# #?##########???"""?# """ #?????# | | # #### ###???#######? ""??# """ #?????# | | ###+### !#???# #] "???# #?????# | | * ##### # ????# ! !#?????# | | / ?????########?????# | | ##### r #???????????????????? | | ### ### #???#gYm #???????????????????# | | ## #?###+###??###%g###???????????????????# | | ############??????????# [[ #???????????????????# | | ??????????????????????# ! #???????????????????# | | ??????????????????????# #???????????????????# | | ??????????????????????# ! #???????????????????# | | ??????????????????????# = #???????????????????# | | ??????????????????????# @ #???????????????????# | | ??????????????????????########???????????????????# | | ?????????????????????????????????????????????????? | | | | | | | | | | | | | | | | | | | | | | | | | | | | | | | | | | | | | | | | | | | | | +----------------------------------------------------+ Best States ------------- Heat Dissipation 45 Energy Generation 21 Energy Capacity 325 Matter Stores 300 Matter Capacity 300 Sight Range 16 Terrain Scan Range 16 Terrain Scan Density 10 Armor Coverage 800 Evasion (%) 54 Targeting Accuracy 13 Item Schematics ----------------- None Robot Schematics ------------------ None Fabricated ------------ Nothing Repaired ---------- Nothing Studied --------- None Alien Tech Used ----------------- None Achievements -------------- A Problem For Future Me Hydra Challenges ------------ None Game ------ Seed HybridLegCrosscalibrator Manual? 0 Play Time 00:14:09 Cumulative 4.8 hours Start 2026.07.15 @ 23:45:07 End 2026.07.16 @ 00:00:23 Sessions 1 Manual Loads 0 Difficulty Rogue Special Mode None Game No. 7 Rogue 7 Adventurer 0 Explorer 0 Win Type - Total 0 Types 0/0/0/0/0/0/0/0/0/0 Lore% 3 Gallery% 7 Achievement% 10 Wizard Run 0 Options --------- Layout 0 ASCII 0 Keyboard 0 Movement Mouse Keybinds 0 Fullscreen 2 Font 18/SmallcapsGlow Map View 76x50 Zoom Use 0% Tactical HUD 0 Map Filters NONE Filters NONE Steam 1 RUN: 70c6a53f-9414-4370-861c-04459bd733fb